bitfinex/quotes_BTCUSD_20240715
["timestamp","ask_amount","ask_price","bid_price","bid_amount"]
[1721034026970,0.60719024,62956.0,62955.0,0.000913]
[1721034027124,0.60719024,62956.0,62955.0,0.002913]
[1721034027322,0.574869,62956.0,62955.0,0.002913]
[1721034027677,0.95309107,62956.0,62955.0,0.000913]
[1721034027944,0.95309107,62956.0,62955.0,0.002913]
[1721034028187,0.95209107,62956.0,62955.0,0.000913]
[1721034028392,0.95409107,62956.0,62955.0,0.000913]
[1721034028778,0.95009107,62956.0,62955.0,0.000913]
[1721034029113,0.95209107,62956.0,62955.0,0.000913]
[1721034029848,0.89209107,62956.0,62955.0,0.000913]
[1721034030290,0.95409107,62956.0,62955.0,0.000913]
[1721034031474,1.24000407,62956.0,62955.0,0.000913]
[1721034031671,1.38165206,62956.0,62955.0,0.000913]
[1721034031903,1.26165206,62956.0,62955.0,0.000913]
[1721034032101,1.37965206,62956.0,62955.0,0.000913]
[1721034032303,1.37765206,62956.0,62955.0,0.000913]
[1721034032501,1.25765206,62956.0,62955.0,0.000913]
[1721034032716,1.25965206,62956.0,62955.0,0.000913]
[1721034032959,1.37765206,62956.0,62955.0,0.000913]
[1721034033137,1.37707567,62956.0,62955.0,0.000913]
[1721034033331,1.25707567,62956.0,62955.0,0.000913]
[1721034033520,1.25907567,62956.0,62955.0,0.000913]
[1721034033717,1.25915586,62956.0,62955.0,0.000913]
[1721034034144,1.77314952,62956.0,62955.0,0.000913]
[1721034034350,1.77314952,62956.0,62946.0,0.000913]
[1721034034351,0.774885,62947.0,62946.0,0.000913]
[1721034034575,1.17877483,62947.0,62946.0,0.000913]
[1721034034800,1.17858368,62947.0,62946.0,0.000913]
[1721034035003,0.89262968,62947.0,62946.0,0.000913]
[1721034035205,0.87089827,62947.0,62946.0,0.000913]
[1721034035610,0.87689827,62947.0,62946.0,0.001913]
[1721034035847,0.87089827,62947.0,62946.0,0.000913]
[1721034036050,1.15685227,62947.0,62946.0,0.000913]
[1721034036265,1.15685227,62947.0,62946.0,0.001913]
[1721034036266,1.24775227,62947.0,62946.0,0.001913]
[1721034036822,1.24771207,62947.0,62946.0,0.001913]
[1721034037043,1.26071207,62947.0,62946.0,0.002913]
[1721034037513,1.24775207,62947.0,62946.0,0.001913]
[1721034037748,1.23575207,62947.0,62946.0,0.000913]
[1721034037926,1.24475207,62947.0,62946.0,0.001913]
[1721034038495,1.25875207,62947.0,62946.0,0.002913]
[1721034038701,1.24475207,62947.0,62946.0,0.001913]
[1721034039090,1.25875207,62947.0,62946.0,0.002913]
[1721034039489,1.24475207,62947.0,62946.0,0.001913]
[1721034040114,1.23583554,62947.0,62946.0,0.000913]
[1721034040313,1.24883554,62947.0,62946.0,0.001913]
[1721034040955,1.23583554,62947.0,62946.0,0.001913]
[1721034041164,1.24883554,62947.0,62946.0,0.002913]
[1721034041320,1.26183554,62947.0,62946.0,0.002913]
[1721034041538,1.69078902,62947.0,62946.0,0.002913]
[1721034042745,1.66778954,62947.0,62946.0,0.002913]
[1721034043148,2.50749437,62947.0,62946.0,0.002913]
[1721034043418,2.50749437,62947.0,62937.0,0.000913]
[1721034043419,1.60961198,62938.0,62937.0,0.000913]
[1721034043659,2.02994613,62938.0,62937.0,0.000913]
[1721034044202,2.05265755,62938.0,62937.0,0.000913]
[1721034044316,2.02994613,62938.0,62937.0,0.000913]
[1721034044517,2.02994613,62938.0,62937.0,0.001913]
[1721034044518,2.0616618,62938.0,62937.0,0.001913]
[1721034044721,2.06166046,62938.0,62937.0,0.001913]
[1721034044936,2.06966046,62938.0,62937.0,0.001913]
[1721034045391,2.04694613,62938.0,62937.0,0.001913]
[1721034045959,1.91894613,62938.0,62937.0,0.001913]
[1721034046102,2.05294613,62938.0,62937.0,0.001913]
[1721034046304,2.04393011,62938.0,62937.0,0.000913]
[1721034046708,2.04393013,62938.0,62937.0,0.000913]
[1721034047074,2.05793013,62938.0,62937.0,0.000913]
[1721034047702,2.428771,62938.0,62937.0,0.000913]
[1721034047899,2.06665309,62938.0,62937.0,0.000913]
[1721034048105,2.05793013,62938.0,62937.0,0.000913]
[1721034049127,2.04393013,62938.0,62937.0,0.000913]
[1721034049331,1.99762989,62938.0,62937.0,0.000913]
[1721034049528,2.02962702,62938.0,62937.0,0.000913]
[1721034049766,2.04362702,62938.0,62937.0,0.000913]
[1721034049971,2.05762702,62938.0,62937.0,0.000913]
[1721034050112,2.07799222,62938.0,62937.0,0.000913]
[1721034050317,2.14717786,62938.0,62937.0,0.000913]
[1721034050518,2.27799222,62938.0,62937.0,0.000913]
[1721034050841,2.06399222,62938.0,62937.0,0.000913]
[1721034051040,2.85618257,62938.0,62937.0,0.000913]
[1721034051238,2.84218257,62938.0,62937.0,0.000913]
[1721034051434,2.81918257,62938.0,62937.0,0.000913]
[1721034051677,2.83318257,62938.0,62937.0,0.000913]
[1721034052259,2.81918257,62938.0,62937.0,0.000913]
[1721034052479,2.84218257,62938.0,62937.0,0.000913]
[1721034052683,2.64197577,62938.0,62937.0,0.000913]
[1721034053090,2.52797577,62938.0,62937.0,0.000913]
[1721034053291,2.12640616,62938.0,62937.0,0.000913]
[1721034053490,2.17719918,62938.0,62937.0,0.000913]
[1721034053692,2.24639294,62938.0,62937.0,0.000913]
[1721034053891,2.23239294,62938.0,62937.0,0.000913]
[1721034054326,2.24639294,62938.0,62937.0,0.000913]
[1721034055307,2.24639294,62938.0,62919.0,0.00397653]
[1721034055308,0.34237298,62920.0,62919.0,0.00397653]
[1721034055471,0.94963785,62920.0,62919.0,0.00397653]
[1721034055670,1.23572298,62920.0,62919.0,0.000913]
[1721034056113,1.35572298,62920.0,62919.0,0.000913]
[1721034056467,1.64186516,62920.0,62919.0,0.000913]
[1721034056656,1.64686516,62920.0,62919.0,0.000913]
[1721034057810,1.65286516,62920.0,62919.0,0.000913]
[1721034058267,1.81498307,62920.0,62919.0,0.000913]
[1721034059839,1.88422315,62920.0,62919.0,0.000913]
[1721034060092,1.81498307,62920.0,62919.0,0.000913]
[1721034060333,1.88422647,62920.0,62919.0,0.00082378]
[1721034060578,1.82422647,62920.0,62919.0,0.00082378]
[1721034060836,1.75498307,62920.0,62919.0,0.00082378]
[1721034061322,1.75502307,62920.0,62919.0,0.00082378]
[1721034061769,1.53290516,62920.0,62919.0,0.00082378]
[1721034062000,0.04304585,62920.0,62919.0,0.00082378]
[1721034062400,0.18926218,62920.0,62919.0,0.00082378]
[1721034062638,0.18926218,62920.0,62919.0,0.01201243]
[1721034062639,0.53457416,62920.0,62919.0,0.01201243]
[1721034062874,0.82065116,62920.0,62919.0,0.00082378]
[1721034063371,1.10586664,62920.0,62919.0,0.00082378]
[1721034064144,1.51194364,62920.0,62919.0,0.00082378]
[1721034064395,1.69516155,62920.0,62919.0,0.00082378]
[1721034064887,1.21582231,62920.0,62919.0,0.00082378]
[1721034065612,0.78864531,62920.0,62919.0,0.00082378]
[1721034066121,0.72941033,62920.0,62919.0,0.00082378]
[1721034066391,1.07472231,62920.0,62919.0,0.00082378]
[1721034067124,1.14396245,62920.0,62919.0,0.00082378]
[1721034068134,1.22056245,62920.0,62919.0,0.00082378]
[1721034068362,1.56718036,62920.0,62919.0,0.00082378]
[1721034068583,1.44718036,62920.0,62919.0,0.00082378]
[1721034069002,1.28506245,62920.0,62919.0,0.00082378]
[1721034070051,1.30560566,62920.0,62919.0,0.00082378]
[1721034070984,1.30560627,62920.0,62919.0,0.00082378]
[1721034072252,1.46772418,62920.0,62919.0,0.00082378]
[1721034072581,1.30560627,62920.0,62919.0,0.00082378]
[1721034072792,1.42560627,62920.0,62919.0,0.00082378]
[1721034073032,1.30560627,62920.0,62919.0,0.00082378]
[1721034073249,1.33751006,62920.0,62919.0,0.00082378]
[1721034074118,1.61960832,62920.0,62919.0,0.00082378]
[1721034074358,1.90568532,62920.0,62919.0,0.00082378]
[1721034074554,1.88515557,62920.0,62919.0,0.00082378]
[1721034074728,1.90571142,62920.0,62919.0,0.00082378]
[1721034075756,1.90071142,62920.0,62919.0,0.00082378]
[1721034075965,1.91471142,62920.0,62919.0,0.00078378]
[1721034076189,2.67138815,62920.0,62919.0,7.8e-07]
[1721034076445,2.58538815,62920.0,62919.0,7.8e-07]
[1721034076657,2.57138815,62920.0,62919.0,7.8e-07]
[1721034076822,2.38538815,62920.0,62919.0,7.8e-07]
[1721034077045,2.09897724,62920.0,62919.0,7.8e-07]
[1721034077247,2.01980687,62920.0,62919.0,7.8e-07]
[1721034077447,1.95728537,62920.0,62919.0,7.8e-07]
[1721034077671,1.67318896,62920.0,62919.0,7.8e-07]
[1721034078075,1.65918896,62920.0,62919.0,7.8e-07]
[1721034078221,1.64518896,62920.0,62919.0,7.8e-07]
[1721034078420,1.65918896,62920.0,62919.0,7.8e-07]
[1721034078621,1.67318896,62920.0,62919.0,7.8e-07]
[1721034079014,1.68718896,62920.0,62919.0,7.8e-07]
[1721034079368,1.79318896,62920.0,62919.0,7.8e-07]
[1721034079577,1.80718896,62920.0,62919.0,7.8e-07]
[1721034079779,1.65918896,62920.0,62919.0,7.8e-07]
[1721034079981,1.65794087,62920.0,62919.0,7.8e-07]
[1721034080213,1.64394087,62920.0,62919.0,7.8e-07]
[1721034080433,1.59246112,62920.0,62919.0,7.8e-07]
[1721034080696,1.82889407,62920.0,62919.0,7.8e-07]
[1721034081116,1.87101198,62920.0,62919.0,7.8e-07]
[1721034081368,2.23091198,62920.0,62919.0,7.8e-07]
[1721034081540,2.51698898,62920.0,62919.0,7.8e-07]
[1721034081694,2.57360806,62920.0,62919.0,7.8e-07]
[1721034082130,2.77360806,62920.0,62919.0,7.8e-07]
[1721034082478,2.91060806,62920.0,62919.0,7.8e-07]
[1721034082689,2.89660806,62920.0,62919.0,7.8e-07]
[1721034082900,2.88260806,62920.0,62919.0,7.8e-07]
[1721034083121,2.89660806,62920.0,62919.0,7.8e-07]
[1721034083356,2.90974478,62920.0,62919.0,7.8e-07]
[1721034083552,2.9099001,62920.0,62919.0,7.8e-07]
[1721034083752,2.7099001,62920.0,62919.0,7.8e-07]
[1721034083950,3.0099001,62920.0,62919.0,7.8e-07]
[1721034084152,2.8099001,62920.0,62919.0,7.8e-07]
[1721034084509,2.7959001,62920.0,62919.0,7.8e-07]
[1721034084633,1.46674298,62912.0,62911.0,7.8e-07]
[1721034084831,1.80670838,62912.0,62911.0,7.8e-07]
[1721034085026,1.68670838,62912.0,62911.0,7.8e-07]
[1721034085286,1.6300893,62912.0,62911.0,7.8e-07]
[1721034085490,1.68833602,62912.0,62911.0,7.8e-07]
[1721034085689,1.80833602,62912.0,62911.0,7.8e-07]
[1721034086010,1.82233602,62912.0,62911.0,7.8e-07]
[1721034086153,1.83633602,62912.0,62911.0,7.8e-07]
[1721034086581,1.72610103,62912.0,62911.0,7.8e-07]
[1721034086912,1.83810075,62912.0,62911.0,7.8e-07]
[1721034087203,2.12421564,62912.0,62911.0,7.8e-07]
[1721034089783,2.01221403,62912.0,62911.0,7.8e-07]
[1721034089991,2.12347023,62912.0,62911.0,7.8e-07]
[1721034091611,2.00347023,62912.0,62911.0,7.8e-07]
[1721034092327,1.26912632,62912.0,62911.0,7.8e-07]
[1721034092522,0.15057233,62912.0,62911.0,0.14260078]
[1721034092858,0.29362833,62912.0,62911.0,0.3654222]
[1721034093014,0.29362833,62912.0,62911.0,0.14260078]
[1721034093015,0.77534095,62912.0,62911.0,0.14260078]
[1721034093215,0.79728039,62912.0,62911.0,0.14260078]
[1721034093422,1.08339339,62912.0,62911.0,0.14260078]
[1721034093673,1.15261197,62912.0,62911.0,0.14260078]
[1721034094169,1.13842068,62912.0,62911.0,0.14260078]
[1721034094399,1.15142068,62912.0,62911.0,0.14260078]
[1721034094668,1.12461197,62912.0,62911.0,0.14260078]
[1721034095062,1.13661197,62912.0,62911.0,0.14260078]
[1721034095566,1.12561197,62912.0,62911.0,0.14260078]
[1721034095979,1.13261197,62912.0,62911.0,0.14260078]
[1721034096183,0.56638597,62912.0,62911.0,0.14260078]
[1721034096426,0.77628039,62912.0,62911.0,0.14260078]
[1721034096638,0.728282,62912.0,62911.0,0.14260078]
[1721034096845,0.78267142,62912.0,62911.0,0.14260078]
[1721034097369,0.06038942,62912.0,62911.0,0.5654222]
[1721034097604,0.03807344,62912.0,62911.0,0.51166022]
[1721034097974,0.005,62912.0,62911.0,0.30778222]
[1721034098149,0.434169,62912.0,62911.0,0.30471869]
[1721034098351,0.75235504,62912.0,62911.0,0.30471869]
[1721034098560,0.74735504,62912.0,62911.0,0.30471869]
[1721034098805,0.46524204,62912.0,62911.0,0.30471869]
[1721034099030,0.03707304,62912.0,62911.0,0.44647458]
[1721034099416,0.03205495,62912.0,62911.0,0.87871511]
[1721034099587,0.143041,62919.0,62918.0,0.20190351]
[1721034099787,0.143041,62919.0,62918.0,0.36402142]
[1721034099788,0.17509677,62919.0,62918.0,0.36402142]
[1721034100015,0.17509677,62919.0,62918.0,0.30331791]
[1721034100174,0.17509677,62919.0,62918.0,0.36402142]
[1721034100394,0.17509677,62919.0,62918.0,0.30331791]
[1721034101025,0.03205577,62919.0,62918.0,0.38437029]
[1721034101247,0.13034615,62944.0,62932.0,0.2]
[1721034101453,0.09564489,62946.0,62933.0,0.3052956]
[1721034101454,0.4863143,62939.0,62933.0,0.3052956]
[1721034101652,0.143005,62935.0,62933.0,0.3052956]
[1721034101860,0.03220352,62934.0,62933.0,0.30211791]
[1721034102304,0.17510819,62934.0,62933.0,0.30211791]
[1721034102941,0.46112119,62934.0,62933.0,0.30211791]
[1721034103217,0.46612119,62934.0,62933.0,0.30211791]
[1721034103587,0.46612119,62934.0,62933.0,0.30411791]
[1721034104411,0.46112119,62934.0,62933.0,0.30411791]
[1721034104613,0.429019,62934.0,62933.0,0.30411791]
[1721034104810,0.143006,62934.0,62933.0,0.36482142]
[1721034105021,0.143006,62934.0,62933.0,0.36282142]
[1721034105264,0.433019,62934.0,62933.0,0.36282142]
[1721034105490,0.433019,62934.0,62933.0,0.30211791]
[1721034105630,0.4611442,62934.0,62933.0,0.30211791]
[1721034105823,0.4611442,62934.0,62933.0,0.36482142]
[1721034105824,0.429019,62934.0,62933.0,0.36482142]
[1721034106207,0.429019,62934.0,62933.0,0.36382142]
[1721034106407,0.429019,62934.0,62933.0,0.30211791]
[1721034106607,0.715032,62934.0,62933.0,0.30211791]
[1721034106810,0.715032,62934.0,62933.0,0.30411791]
[1721034107019,1.09240579,62934.0,62933.0,0.002]
[1721034107230,1.37841879,62934.0,62933.0,0.002]
[1721034107684,1.40081709,62934.0,62933.0,0.004]
[1721034107889,1.40081709,62934.0,62933.0,0.002]
[1721034108094,0.715112,62927.0,62926.0,0.04956002]
[1721034108347,0.715112,62927.0,62926.0,0.47238144]
[1721034108348,0.17514781,62927.0,62926.0,0.47238144]
[1721034108488,0.143022,62927.0,62926.0,0.48802142]
[1721034108660,0.429067,62927.0,62926.0,0.48802142]
[1721034108871,0.429067,62927.0,62926.0,0.42731791]
[1721034109126,0.715112,62927.0,62926.0,0.42731791]
[1721034109321,1.06039198,62927.0,62926.0,0.0672]
[1721034109538,1.001157,62927.0,62926.0,0.004]
[1721034109780,1.001157,62927.0,62926.0,0.002]
[1721034110098,1.001157,62927.0,62926.0,0.004]
[1721034110310,1.37861308,62927.0,62926.0,0.004]
[1721034110535,1.62760002,62927.0,62926.0,0.004]
[1721034110683,1.11565502,62927.0,62926.0,0.004]
[1721034110902,1.05642004,62927.0,62926.0,0.004]
[1721034111107,1.0333331,62927.0,62926.0,0.004]
[1721034111261,0.715192,62920.0,62919.0,0.00306353]
[1721034111689,1.001269,62920.0,62919.0,0.00306353]
[1721034111897,1.03350311,62920.0,62919.0,0.00306353]
[1721034112098,0.715205,62919.0,62918.0,0.67722338]
[1721034112369,1.033521,62919.0,62918.0,0.67722338]
[1721034113399,1.0329454,62919.0,62918.0,0.67822338]
[1721034113626,1.09218038,62919.0,62918.0,0.67822338]
[1721034113804,1.0329454,62919.0,62918.0,0.67822338]
[1721034114748,1.0329454,62919.0,62918.0,0.68022338]
[1721034114879,1.0329454,62919.0,62918.0,0.67822338]
[1721034115082,1.37826238,62919.0,62918.0,0.68022338]
[1721034115295,1.40168178,62919.0,62918.0,0.003]
[1721034115957,1.40168178,62919.0,62918.0,0.002]
[1721034116378,1.40968178,62919.0,62918.0,0.002]
[1721034116587,1.52968178,62919.0,62918.0,0.002]
[1721034116998,1.52168178,62919.0,62918.0,0.002]
[1721034117143,1.53268178,62919.0,62918.0,0.002]
[1721034117524,1.41268178,62919.0,62918.0,0.002]
[1721034117652,0.715282,62912.0,62911.0,7.8e-07]
[1721034117879,0.747516,62912.0,62911.0,7.8e-07]
[1721034118072,0.74757717,62912.0,62911.0,7.8e-07]
[1721034119258,0.75157717,62912.0,62911.0,7.8e-07]
[1721034120012,0.75457717,62912.0,62911.0,7.8e-07]
[1721034120546,0.77917479,62912.0,62911.0,7.8e-07]
[1721034120743,0.83841196,62912.0,62911.0,7.8e-07]
[1721034120992,1.51884932,62912.0,62911.0,7.8e-07]
[1721034121222,1.1207684,62912.0,62911.0,7.8e-07]
[1721034121348,1.12077044,62912.0,62911.0,7.8e-07]
[1721034121749,1.12277044,62912.0,62911.0,7.8e-07]
[1721034122056,0.77742246,62912.0,62911.0,7.8e-07]
[1721034122403,0.77742246,62912.0,62911.0,0.06091378]
[1721034122607,0.06214046,62912.0,62911.0,0.2837352]
[1721034122811,0.18048795,62912.0,62911.0,0.30033169]
[1721034123017,0.46660095,62912.0,62911.0,0.30033169]
[1721034123303,0.46660095,62912.0,62911.0,0.00091378]
[1721034123304,1.03853851,62912.0,62911.0,0.00091378]
[1721034123452,1.06403412,62912.0,62911.0,0.00091378]
[1721034123658,1.06414909,62912.0,62911.0,0.00091378]
[1721034123854,1.03865317,62912.0,62911.0,0.00091378]
[1721034124468,1.06384622,62912.0,62911.0,0.00091378]
[1721034124900,1.00610656,62912.0,62911.0,0.00091378]
[1721034125099,1.06355961,62912.0,62911.0,0.00091378]
[1721034126864,1.00610656,62912.0,62911.0,0.00091378]
[1721034127062,1.06355959,62912.0,62911.0,0.00091378]
[1721034128010,1.0385883,62912.0,62911.0,0.00091378]
[1721034128230,1.06374738,62912.0,62911.0,0.00091378]
[1721034128434,1.12298236,62912.0,62911.0,0.00091378]
[1721034129682,1.06374738,62912.0,62911.0,0.00091378]
[1721034129864,1.06377433,62912.0,62911.0,0.00091378]
[1721034130098,1.00610656,62912.0,62911.0,0.00091378]
[1721034130296,1.03861537,62912.0,62911.0,0.00091378]
[1721034130542,1.06365587,62912.0,62911.0,0.00091378]
[1721034131815,1.03861537,62912.0,62911.0,0.00091378]
[1721034132194,1.06419155,62912.0,62911.0,0.00091378]
[1721034133420,1.03781959,62912.0,62911.0,0.00091378]
[1721034133595,1.06334461,62912.0,62911.0,0.00091378]
[1721034133776,1.00524352,62912.0,62911.0,0.00091378]
[1721034133989,1.06313943,62912.0,62911.0,0.00091378]
[1721034134613,1.12237441,62912.0,62911.0,0.00091378]
[1721034135460,1.06313943,62912.0,62911.0,0.00091378]
[1721034135681,1.12237441,62912.0,62911.0,0.00091378]
[1721034136255,1.06313943,62912.0,62911.0,0.00091378]
[1721034136587,1.12173347,62912.0,62911.0,0.00091378]
[1721034136983,1.20429849,62912.0,62911.0,0.00091378]
[1721034137185,1.06249849,62912.0,62911.0,0.00091378]
[1721034137882,1.84477728,62912.0,62911.0,0.00091378]
[1721034138089,1.90668801,62912.0,62911.0,0.00091378]
[1721034138631,1.68078801,62912.0,62911.0,0.00091378]
[1721034139731,1.68293,62912.0,62911.0,0.00091378]
[1721034140746,1.396817,62912.0,62911.0,0.00091378]
[1721034140948,0.84715933,62912.0,62911.0,0.00091378]
[1721034141398,1.19250731,62912.0,62911.0,0.00091378]
[1721034142879,1.13370931,62912.0,62911.0,0.00091378]
[1721034143083,1.19323442,62912.0,62911.0,0.00091378]
[1721034144512,1.62088426,62912.0,62911.0,0.00091378]
[1721034146185,2.22027086,62912.0,62911.0,0.00091378]
[1721034146293,2.47859373,62912.0,62911.0,7.8e-07]
[1721034146505,2.64136622,62912.0,62911.0,7.8e-07]
[1721034146713,2.76471981,62912.0,62911.0,7.8e-07]
[1721034147335,0.32229798,62909.0,62908.0,7.8e-07]
[1721034147537,0.92057862,62909.0,62908.0,7.8e-07]
[1721034147824,1.97895962,62909.0,62908.0,7.8e-07]
[1721034148048,2.55121362,62909.0,62908.0,7.8e-07]
[1721034148244,2.63734062,62909.0,62908.0,7.8e-07]
[1721034148935,2.83734062,62909.0,62908.0,7.8e-07]
[1721034149159,2.66423997,62909.0,62908.0,7.8e-07]
[1721034149945,2.75890733,62909.0,62908.0,7.8e-07]
[1721034150149,2.66423997,62909.0,62908.0,7.8e-07]
[1721034151427,2.86423997,62909.0,62908.0,7.8e-07]
[1721034151614,2.66423997,62909.0,62908.0,7.8e-07]
[1721034152459,2.66407544,62909.0,62908.0,7.8e-07]
[1721034153122,2.60407544,62909.0,62908.0,7.8e-07]
[1721034154806,2.80407544,62909.0,62908.0,7.8e-07]
[1721034155451,2.92244921,62909.0,62908.0,7.8e-07]
[1721034155577,2.74453032,62909.0,62908.0,7.8e-07]
[1721034155777,2.92177802,62909.0,62908.0,7.8e-07]
[1721034156177,2.89808275,62909.0,62908.0,7.8e-07]
[1721034156529,2.84307119,62909.0,62908.0,7.8e-07]
[1721034156853,2.07926798,62902.0,62901.0,5.3e-07]
[1721034157029,3.00220948,62902.0,62901.0,5.3e-07]
[1721034157180,3.00220948,62902.0,62900.0,2.004]
[1721034157181,1.52386851,62901.0,62900.0,2.004]
[1721034157397,1.52386851,62901.0,62900.0,1.1174]
[1721034157398,2.71913601,62901.0,62900.0,1.1174]
[1721034157601,3.09999041,62901.0,62900.0,1.1174]
[1721034158027,3.09692688,62901.0,62900.0,1.1174]
[1721034158199,3.00223548,62901.0,62900.0,1.1174]
[1721034158812,2.9996183,62901.0,62900.0,1.1174]
[1721034159023,2.9996183,62901.0,62900.0,1.1141]
[1721034159236,2.39080996,62901.0,62900.0,1.1141]
[1721034159438,2.40480996,62901.0,62900.0,1.1141]
[1721034160016,2.41880996,62901.0,62900.0,1.1141]
[1721034160486,2.44180996,62901.0,62900.0,1.1141]
[1721034160616,3.02797296,62901.0,62900.0,1.1141]
[1721034160817,2.82797296,62901.0,62900.0,1.1141]
[1721034161061,2.70497296,62901.0,62900.0,1.1141]
[1721034161240,2.31880996,62901.0,62900.0,1.1141]
[1721034161445,2.08269205,62901.0,62900.0,1.1141]
[1721034161866,2.09669205,62901.0,62900.0,1.1141]
[1721034162227,2.19669205,62901.0,62900.0,1.1141]
[1721034162424,2.18269205,62901.0,62900.0,1.1141]
[1721034162715,2.24269205,62901.0,62900.0,1.1141]
[1721034163287,2.40480996,62901.0,62900.0,1.1141]
[1721034163633,2.60480996,62901.0,62900.0,1.1141]
[1721034163805,2.61880996,62901.0,62900.0,1.1141]
[1721034164182,2.51880996,62901.0,62900.0,1.1141]
[1721034164359,2.71880996,62901.0,62900.0,1.1141]
[1721034164792,3.02797296,62901.0,62900.0,1.1141]
[1721034164993,3.02786449,62901.0,62900.0,1.1141]
[1721034165196,1.77912058,62901.0,62900.0,1.1141]
[1721034165406,1.71764762,62901.0,62900.0,1.1141]
[1721034165617,1.80564762,62901.0,62900.0,1.1141]
[1721034165782,1.48774762,62901.0,62900.0,1.1141]
[1721034166018,1.48766461,62901.0,62900.0,1.1141]
[1721034166966,1.41619879,62901.0,62900.0,1.1141]
[1721034167100,1.47190357,62901.0,62900.0,1.1141]
[1721034167282,1.19974057,62901.0,62900.0,1.1141]
[1721034167797,0.13893559,62901.0,62900.0,1.33731273]
[1721034167970,0.06026125,62901.0,62900.0,1.86464911]
[1721034168116,0.014,62901.0,62900.0,1.96464911]
[1721034168554,0.028,62901.0,62900.0,1.96464911]
[1721034168758,0.028,62901.0,62900.0,1.59566511]
[1721034168961,0.014,62901.0,62900.0,1.51384771]
[1721034169164,0.0671885,62901.0,62900.0,1.51384771]
[1721034169322,0.035,62901.0,62900.0,1.51461273]
[1721034169720,0.021,62901.0,62900.0,1.51461273]
[1721034170020,0.029,62901.0,62900.0,1.51461273]
[1721034171732,0.029,62901.0,62900.0,1.75769673]
[1721034172134,0.029,62901.0,62900.0,2.04386473]
[1721034172375,0.029,62901.0,62900.0,2.06686473]
[1721034172996,0.021,62901.0,62900.0,2.85492011]
[1721034173197,0.021,62901.0,62900.0,2.71183611]
[1721034173395,0.022,62901.0,62900.0,2.69083611]
[1721034173606,0.022,62901.0,62900.0,2.83392011]
[1721034173826,0.021,62901.0,62900.0,2.83192011]
[1721034174026,0.143068,62907.0,62906.0,0.20089482]
[1721034174271,0.46133144,62907.0,62906.0,0.36224771]
[1721034174477,0.46133144,62907.0,62906.0,0.16224771]
[1721034174478,0.74746727,62907.0,62906.0,0.16224771]
[1721034174698,0.74746727,62907.0,62906.0,0.42404771]
[1721034174699,0.03212727,62907.0,62906.0,0.42404771]
[1721034175110,0.143066,62908.0,62907.0,0.0001298]
[1721034175233,0.17498069,62908.0,62907.0,0.16224771]
[1721034176454,0.03691469,62908.0,62907.0,0.16301273]
[1721034176732,0.005,62908.0,62907.0,0.77555978]
[1721034176933,0.01,62908.0,62907.0,1.63819578]
[1721034177153,0.00306353,62931.0,62927.0,0.20076502]
[1721034177329,0.14607653,62931.0,62930.0,0.00089482]
[1721034177542,0.74699919,62931.0,62930.0,0.0001298]
[1721034177667,0.74699956,62931.0,62930.0,0.0001298]
[1721034178294,1.09226154,62931.0,62930.0,0.0001298]
[1721034178494,0.71509,62929.0,62928.0,0.16224771]
[1721034178748,0.74702256,62929.0,62928.0,0.16224771]
[1721034179352,0.71509,62929.0,62928.0,0.16224771]
[1721034179585,0.143018,62929.0,62928.0,0.36224771]
[1721034179793,0.429054,62929.0,62928.0,0.36224771]
[1721034180226,0.014,62931.0,62930.0,0.00089482]
[1721034180432,0.00083,62934.0,62933.0,0.00089482]
[1721034180630,0.00083,62934.0,62933.0,0.30344771]
[1721034180923,0.00083,62934.0,62933.0,0.30662532]
[1721034181272,0.00083,62934.0,62933.0,0.30344771]
[1721034182098,0.00083,62934.0,62933.0,0.0001298]
[1721034182099,0.429849,62934.0,62933.0,0.0001298]
[1721034182310,1.06110998,62934.0,62933.0,0.001]
[1721034182718,1.001875,62934.0,62933.0,0.0011298]
[1721034182966,0.77509698,62934.0,62933.0,0.0011298]
[1721034183166,0.77509698,62934.0,62933.0,0.001]
[1721034183512,1.34712298,62934.0,62933.0,0.001]
[1721034183719,1.37884846,62934.0,62933.0,0.001]
[1721034184972,1.37984846,62934.0,62933.0,0.001]
[1721034185174,1.50613294,62934.0,62933.0,0.001]
[1721034185399,1.44513294,62934.0,62933.0,0.001]
[1721034185612,1.51213294,62934.0,62933.0,0.002]
[1721034185779,1.51913294,62934.0,62933.0,0.003]
[1721034185981,1.51913294,62934.0,62933.0,0.001]
[1721034185982,1.51213294,62934.0,62933.0,0.001]
[1721034186184,1.06048998,62921.0,62920.0,0.2]
[1721034186629,1.06048998,62921.0,62920.0,0.2001298]
[1721034186630,1.001255,62921.0,62920.0,0.2001298]
[1721034187436,1.06348998,62921.0,62920.0,0.2]
[1721034187641,1.06348998,62921.0,62915.0,0.0001298]
[1721034187642,0.143047,62916.0,62915.0,0.0001298]
[1721034187851,0.429142,62916.0,62915.0,0.16224771]
[1721034188055,0.42915,62915.0,62914.0,0.0001298]
[1721034188218,1.00135,62915.0,62914.0,0.0001298]
[1721034189539,1.06058498,62915.0,62914.0,0.0001298]
[1721034189742,1.06458498,62915.0,62914.0,0.0001298]
[1721034190369,0.715307,62910.0,62909.0,0.000913]
[1721034190579,0.715307,62910.0,62909.0,0.16316071]
[1721034190580,1.00143,62910.0,62909.0,0.16316071]
[1721034191867,1.03317971,62910.0,62909.0,0.16316071]
[1721034192070,1.00143,62910.0,62909.0,0.16316071]
[1721034192248,1.00143,62910.0,62909.0,0.17216071]
[1721034193073,1.06066498,62910.0,62909.0,0.0100428]
[1721034193335,1.09241819,62910.0,62909.0,0.0100428]
[1721034193787,1.09241819,62910.0,62909.0,0.009913]
[1721034195727,1.52189752,62910.0,62909.0,0.009913]
[1721034195931,1.60530292,62910.0,62909.0,0.009913]
[1721034196146,1.96061345,62910.0,62909.0,0.009913]
[1721034196347,1.96061345,62910.0,62900.0,1.1141]
[1721034196348,1.19610498,62901.0,62900.0,1.1141]
[1721034196549,1.31081992,62901.0,62900.0,1.1141]
[1721034196677,1.88314592,62901.0,62900.0,1.1141]
[1721034197127,1.95234351,62901.0,62900.0,1.1141]
[1721034198056,2.05900853,62901.0,62900.0,1.1141]
[1721034198244,2.23626256,62901.0,62900.0,1.1141]
[1721034198405,2.34036142,62901.0,62900.0,1.1141]
[1721034198581,2.49836296,62901.0,62900.0,1.1141]
[1721034199081,3.07709403,62901.0,62900.0,1.1141]
[1721034199274,3.10109403,62901.0,62900.0,1.1141]
[1721034199480,2.78185905,62901.0,62900.0,1.1141]
[1721034199700,3.09109403,62901.0,62900.0,1.1141]
[1721034199904,3.07709403,62901.0,62900.0,1.1141]
[1721034200104,3.09109403,62901.0,62900.0,1.1141]
[1721034200299,3.30921143,62901.0,62900.0,1.1141]
[1721034200527,3.20602221,62901.0,62900.0,0.82096445]
[1721034200725,3.20602221,62901.0,62888.0,7.6e-07]